{"text_format":"1","workbook":"xlsx","n_sheets":13,"sheets":["баскетбол","бильярд","борьба","волейбол","конный спорт","л атлетика","л гонки","м футбол","н теннис","ОФП","у бой","с ориентир","черлидинг"],"not_rendered":{"charts":0,"images":0,"macros":0,"external_links":0,"defined_names":0,"comments":0,"pivot_tables":0},"unopened":[],"bounds":{"document_bytes":16777216,"sheet_cells":100000,"rows_first":2000,"rows_last":500,"rows_between":2000,"halvings":0,"cell_chars":16384,"cell_head_chars":4096},"cells_cut":0,"cells_raw":0,"read":"whole","date_system":"1900"}

{"sheet":"баскетбол","index":0,"n_rows":36,"n_cols":25,"rows_kept":36,"cut":false,"hidden":false,"merged":[[3,7,3,8],[0,0,0,24],[1,0,1,24],[2,0,2,1],[2,2,2,6],[2,7,2,10],[2,11,2,14],[2,15,2,18],[2,19,2,24],[3,0,4,0],[3,1,4,1],[3,2,4,2],[3,3,3,4],[3,5,3,6],[25,1,25,24],[3,21,3,22],[3,23,4,23],[3,24,4,24],[21,0,21,2],[22,0,22,2],[22,3,22,10],[22,11,22,12],[22,13,22,20],[22,21,22,22],[3,9,3,10],[3,11,3,12],[3,13,3,14],[3,15,3,16],[3,17,3,18],[3,19,3,20],[23,0,23,1],[23,3,23,5],[23,6,23,12],[23,13,23,16],[23,17,23,22],[32,1,32,24],[33,1,33,24],[34,1,34,24],[35,1,35,24],[26,1,26,24],[27,1,27,24],[28,1,28,24],[29,1,29,24],[30,1,30,24],[31,1,31,24]]}
[" П Р О Т О К О Л"]
["приема контрольно переводных нормативов (КПН)"]
["вид спорта-",null,"баскетбол",null,null,null,null,"группа-",null,null,null,"СОГ",null,null,null,"тренер-"]
["№","Ф.И.","возраст",1,null,2,null,3,null,4,null,5,null,6,null,7,null,8,null,9,null,10,null,"Теория","средняя оценка"]
[null,null,null,"р","о","р","о","р","о","р","о","р","о","р","о","р","о","р","о","р","о","р","о"]
[1,null,null,null,null,null,null,null,null,null,null,null,null,null,null,null,null,null,null,null,null,null,null,null,{"$f":"(E6+G6+I6+K6+M6+O6+Q6+S6+U6+W6)/10","v":0}]
[2,null,null,null,null,null,null,null,null,null,null,null,null,null,null,null,null,null,null,null,null,null,null,null,{"$f":"(E7+G7+I7+K7+M7+O7+Q7+S7+U7+W7)/10","v":0}]
[3,null,null,null,null,null,null,null,null,null,null,null,null,null,null,null,null,null,null,null,null,null,null,null,0]
[4,null,null,null,null,null,null,null,null,null,null,null,null,null,null,null,null,null,null,null,null,null,null,null,0]
[5,null,null,null,null,null,null,null,null,null,null,null,null,null,null,null,null,null,null,null,null,null,null,null,0]
[6,null,null,null,null,null,null,null,null,null,null,null,null,null,null,null,null,null,null,null,null,null,null,null,0]
[7,null,null,null,null,null,null,null,null,null,null,null,null,null,null,null,null,null,null,null,null,null,null,null,0]
[8,null,null,null,null,null,null,null,null,null,null,null,null,null,null,null,null,null,null,null,null,null,null,null,0]
[9,null,null,null,null,null,null,null,null,null,null,null,null,null,null,null,null,null,null,null,null,null,null,null,0]
[10,null,null,null,null,null,null,null,null,null,null,null,null,null,null,null,null,null,null,null,null,null,null,null,0]
[11,null,null,null,null,null,null,null,null,null,null,null,null,null,null,null,null,null,null,null,null,null,null,null,0]
[12,null,null,null,null,null,null,null,null,null,null,null,null,null,null,null,null,null,null,null,null,null,null,null,0]
[13,null,null,null,null,null,null,null,null,null,null,null,null,null,null,null,null,null,null,null,null,null,null,null,0]
[14,null,null,null,null,null,null,null,null,null,null,null,null,null,null,null,null,null,null,null,null,null,null,null,0]
[15,null,null,null,null,null,null,null,null,null,null,null,null,null,null,null,null,null,null,null,null,null,null,null,0]
[16,null,null,null,null,null,null,null,null,null,null,null,null,null,null,null,null,null,null,null,null,null,null,null,0]
["средний результат/оценка по группе",null,null,{"$f":"(D6+D7+D8+D9+D10+D11+D12+D13+D14+D15+D16+D17+D18+D19+D20+D21)/16","v":0},{"$f":"(E6+E7+E8+E9+E10+E11+E12+E13+E14+E15+E16+E17+E18+E19+E20+E21)/16","v":0},0,0,0,0,0,0,0,0,0,0,0,0,0,0,0,0,0,0,{"$f":"(X6+X7+X8+X9+X10+X11+X12+X13+X14+X15+X16+X17+X18+X19+X20+X21)/16","v":0},{"$f":"(Y6+Y7+Y8+Y9+Y10+Y11+Y12+Y13+Y14+Y15+Y16+Y17+Y18+Y19+Y20+Y21)/16","v":0}]
["средний балл по",null,null,"ОФП",null,null,null,null,null,null,null,{"$f":"(E22+G22+I22+K22+M22)/5","v":0},null,"СФП",null,null,null,null,null,null,null,{"$f":"(O22+Q22+S22+U22+W22)/5","v":0}]
["Дата приема КПН",null,null,"Гл.судья ",null,null,null,null,null,null,null,null,null,"Гл.секретарь"]
[]
["№","НАИМЕНОВАНИЕ КПН: № 1-5 - ОФП; 6-10 СФП"]
[1,"Бег на время (30, 60, 100  м), дистанция в зависимости от возраста, с низкого или высокого старта"]
[2,"Бег на время (500, 1000,2000, 3000 м), в зависимости от возраста и пола"]
[3,"Прыжок в длину с места (см), на дальность"]
[4,"Подтягивание на прекладине низкой или высокой, в завистимости от возраста и пола, количество раз "]
[5,"Сгибание и разгибание рук в упоре лежа на полу, количество раз"]
[6]
[7]
[8]
[9]
[10]

{"sheet":"бильярд","index":1,"n_rows":36,"n_cols":25,"rows_kept":36,"cut":false,"hidden":false,"merged":[[3,7,3,8],[0,0,0,24],[1,0,1,24],[2,2,2,6],[2,7,2,10],[2,11,2,14],[2,15,2,18],[2,19,2,24],[3,0,4,0],[3,1,4,1],[3,2,4,2],[3,3,3,4],[3,5,3,6],[2,0,2,1],[25,1,25,24],[3,21,3,22],[3,23,4,23],[3,24,4,24],[21,0,21,2],[22,0,22,2],[22,3,22,10],[22,11,22,12],[22,13,22,20],[22,21,22,22],[3,9,3,10],[3,11,3,12],[3,13,3,14],[3,15,3,16],[3,17,3,18],[3,19,3,20],[32,1,32,24],[33,1,33,24],[34,1,34,24],[35,1,35,24],[26,1,26,24],[27,1,27,24],[28,1,28,24],[29,1,29,24],[30,1,30,24],[31,1,31,24],[23,0,23,1],[23,3,23,5],[23,6,23,12],[23,13,23,16],[23,17,23,22]]}
[" П Р О Т О К О Л"]
["приема контрольно переводных нормативов (КПН)"]
["вид спорта-",null,"бильярдный спорт",null,null,null,null,"группа-",null,null,null,"СОГ",null,null,null,"тренер-"]
["№","Ф.И.","возраст",1,null,2,null,3,null,4,null,5,null,6,null,7,null,8,null,9,null,10,null,"Теория","средняя оценка"]
[null,null,null,"р","о","р","о","р","о","р","о","р","о","р","о","р","о","р","о","р","о","р","о"]
[1,null,null,null,null,null,null,null,null,null,null,null,null,null,null,null,null,null,null,null,null,null,null,null,{"$f":"(E6+G6+I6+K6+M6+O6+Q6+S6+U6+W6)/10","v":0}]
[2,null,null,null,null,null,null,null,null,null,null,null,null,null,null,null,null,null,null,null,null,null,null,null,{"$f":"(E7+G7+I7+K7+M7+O7+Q7+S7+U7+W7)/10","v":0}]
[3,null,null,null,null,null,null,null,null,null,null,null,null,null,null,null,null,null,null,null,null,null,null,null,0]
[4,null,null,null,null,null,null,null,null,null,null,null,null,null,null,null,null,null,null,null,null,null,null,null,0]
[5,null,null,null,null,null,null,null,null,null,null,null,null,null,null,null,null,null,null,null,null,null,null,null,0]
[6,null,null,null,null,null,null,null,null,null,null,null,null,null,null,null,null,null,null,null,null,null,null,null,0]
[7,null,null,null,null,null,null,null,null,null,null,null,null,null,null,null,null,null,null,null,null,null,null,null,0]
[8,null,null,null,null,null,null,null,null,null,null,null,null,null,null,null,null,null,null,null,null,null,null,null,0]
[9,null,null,null,null,null,null,null,null,null,null,null,null,null,null,null,null,null,null,null,null,null,null,null,0]
[10,null,null,null,null,null,null,null,null,null,null,null,null,null,null,null,null,null,null,null,null,null,null,null,0]
[11,null,null,null,null,null,null,null,null,null,null,null,null,null,null,null,null,null,null,null,null,null,null,null,0]
[12,null,null,null,null,null,null,null,null,null,null,null,null,null,null,null,null,null,null,null,null,null,null,null,0]
[13,null,null,null,null,null,null,null,null,null,null,null,null,null,null,null,null,null,null,null,null,null,null,null,0]
[14,null,null,null,null,null,null,null,null,null,null,null,null,null,null,null,null,null,null,null,null,null,null,null,0]
[15,null,null,null,null,null,null,null,null,null,null,null,null,null,null,null,null,null,null,null,null,null,null,null,0]
[16,null,null,null,null,null,null,null,null,null,null,null,null,null,null,null,null,null,null,null,null,null,null,null,0]
["средний результат/оценка по группе",null,null,{"$f":"(D6+D7+D8+D9+D10+D11+D12+D13+D14+D15+D16+D17+D18+D19+D20+D21)/16","v":0},{"$f":"(E6+E7+E8+E9+E10+E11+E12+E13+E14+E15+E16+E17+E18+E19+E20+E21)/16","v":0},0,0,0,0,0,0,0,0,0,0,0,0,0,0,0,0,0,0,{"$f":"(X6+X7+X8+X9+X10+X11+X12+X13+X14+X15+X16+X17+X18+X19+X20+X21)/16","v":0},{"$f":"(Y6+Y7+Y8+Y9+Y10+Y11+Y12+Y13+Y14+Y15+Y16+Y17+Y18+Y19+Y20+Y21)/16","v":0}]
["средний балл по",null,null,"ОФП",null,null,null,null,null,null,null,{"$f":"(E22+G22+I22+K22+M22)/5","v":0},null,"СФП",null,null,null,null,null,null,null,{"$f":"(O22+Q22+S22+U22+W22)/5","v":0}]
["Дата приема КПН",null,null,"Гл.судья ",null,null,null,null,null,null,null,null,null,"Гл.секретарь"]
[]
["№","НАИМЕНОВАНИЕ КПН: № 1-5 - ОФП; 6-10 СФП"]
[1,"Бег на время (30, 60, 100  м), дистанция в зависимости от возраста, с низкого или высокого старта"]
[2,"Бег на время (500, 1000,2000, 3000 м), в зависимости от возраста и пола"]
[3,"Прыжок в длину с места (см), на дальность"]
[4,"Подтягивание на прекладине низкой или высокой, в завистимости от возраста и пола, количество раз "]
[5,"Сгибание и разгибание рук в упоре лежа на полу, количество раз"]
[6,"Прямой удар по шару с точки 1 через точки 2,3 так, чтобы отразившись от заднего борта шар возвратился в \"дом\" и остановился между точккой 1 и серединой "]
[7,"Сыграть одиночный шар из \"дома\" в противоположную ЦЛ"]
[8,"Разбить прирамиду битком из \"дома\". Забивать шары в лузу по одному."]
[9,"Забивать ПШ-в ЦЛ. Б -располагаетсядо продольной линии. ПШ-на продольной линии"]
[10,"Сыграть одиночный шар (Т1) в далюнюю УЛ"]

{"sheet":"борьба","index":2,"n_rows":36,"n_cols":25,"rows_kept":36,"cut":false,"hidden":false,"merged":[[0,0,0,24],[1,0,1,24],[2,0,2,1],[2,11,2,14],[2,15,2,18],[2,19,2,24],[3,19,3,20],[3,0,4,0],[3,1,4,1],[3,2,4,2],[3,3,3,4],[3,5,3,6],[3,7,3,8],[23,17,23,22],[25,1,25,24],[3,21,3,22],[3,23,4,23],[3,24,4,24],[21,0,21,2],[22,0,22,2],[22,3,22,10],[22,11,22,12],[22,13,22,20],[22,21,22,22],[3,9,3,10],[3,11,3,12],[3,13,3,14],[3,15,3,16],[3,17,3,18],[32,1,32,24],[33,1,33,24],[34,1,34,24],[35,1,35,24],[2,8,2,10],[2,2,2,7],[26,1,26,24],[27,1,27,24],[28,1,28,24],[29,1,29,24],[30,1,30,24],[31,1,31,24],[23,0,23,1],[23,3,23,5],[23,6,23,12],[23,13,23,16]]}
[" П Р О Т О К О Л"]
["приема контрольно переводных нормативов (КПН)"]
["вид спорта-",null,"греко-римская борьба ",null,null,null,null,null,"группа-",null,null,"СОГ",null,null,null,"тренер-"]
["№","Ф.И.","возраст",1,null,2,null,3,null,4,null,5,null,6,null,7,null,8,null,9,null,10,null,"Теория","средняя оценка"]
[null,null,null,"р","о","р","о","р","о","р","о","р","о","р","о","р","о","р","о","р","о","р","о"]
[1,null,null,null,null,null,null,null,null,null,null,null,null,null,null,null,null,null,null,null,null,null,null,null,{"$f":"(E6+G6+I6+K6+M6+O6+Q6+S6+U6+W6)/10","v":0}]
[2,null,null,null,null,null,null,null,null,null,null,null,null,null,null,null,null,null,null,null,null,null,null,null,{"$f":"(E7+G7+I7+K7+M7+O7+Q7+S7+U7+W7)/10","v":0}]
[3,null,null,null,null,null,null,null,null,null,null,null,null,null,null,null,null,null,null,null,null,null,null,null,0]
[4,null,null,null,null,null,null,null,null,null,null,null,null,null,null,null,null,null,null,null,null,null,null,null,0]
[5,null,null,null,null,null,null,null,null,null,null,null,null,null,null,null,null,null,null,null,null,null,null,null,0]
[6,null,null,null,null,null,null,null,null,null,null,null,null,null,null,null,null,null,null,null,null,null,null,null,0]
[7,null,null,null,null,null,null,null,null,null,null,null,null,null,null,null,null,null,null,null,null,null,null,null,0]
[8,null,null,null,null,null,null,null,null,null,null,null,null,null,null,null,null,null,null,null,null,null,null,null,0]
[9,null,null,null,null,null,null,null,null,null,null,null,null,null,null,null,null,null,null,null,null,null,null,null,0]
[10,null,null,null,null,null,null,null,null,null,null,null,null,null,null,null,null,null,null,null,null,null,null,null,0]
[11,null,null,null,null,null,null,null,null,null,null,null,null,null,null,null,null,null,null,null,null,null,null,null,0]
[12,null,null,null,null,null,null,null,null,null,null,null,null,null,null,null,null,null,null,null,null,null,null,null,0]
[13,null,null,null,null,null,null,null,null,null,null,null,null,null,null,null,null,null,null,null,null,null,null,null,0]
[14,null,null,null,null,null,null,null,null,null,null,null,null,null,null,null,null,null,null,null,null,null,null,null,0]
[15,null,null,null,null,null,null,null,null,null,null,null,null,null,null,null,null,null,null,null,null,null,null,null,0]
[16,null,null,null,null,null,null,null,null,null,null,null,null,null,null,null,null,null,null,null,null,null,null,null,0]
["средний результат/оценка по группе",null,null,{"$f":"(D6+D7+D8+D9+D10+D11+D12+D13+D14+D15+D16+D17+D18+D19+D20+D21)/16","v":0},{"$f":"(E6+E7+E8+E9+E10+E11+E12+E13+E14+E15+E16+E17+E18+E19+E20+E21)/16","v":0},0,0,0,0,0,0,0,0,0,0,0,0,0,0,0,0,0,0,{"$f":"(X6+X7+X8+X9+X10+X11+X12+X13+X14+X15+X16+X17+X18+X19+X20+X21)/16","v":0},{"$f":"(Y6+Y7+Y8+Y9+Y10+Y11+Y12+Y13+Y14+Y15+Y16+Y17+Y18+Y19+Y20+Y21)/16","v":0}]
["средний балл по",null,null,"ОФП",null,null,null,null,null,null,null,{"$f":"(E22+G22+I22+K22+M22)/5","v":0},null,"СФП",null,null,null,null,null,null,null,{"$f":"(O22+Q22+S22+U22+W22)/5","v":0}]
["Дата приема КПН",null,null,"Гл.судья ",null,null,null,null,null,null,null,null,null,"Гл.секретарь"]
[]
["№","НАИМЕНОВАНИЕ КПН: № 1-5 - ОФП; 6-10 СФП"]
[1,"Бег на время (30, 60, 100  м), дистанция в зависимости от возраста, с низкого или высокого старта"]
[2,"Бег на время (500, 1000,2000, 3000 м), в зависимости от возраста и пола"]
[3,"Прыжок в длину с места (см), на дальность"]
[4,"Подтягивание на прекладине низкой или высокой, в завистимости от возраста и пола, количество раз "]
[5,"Сгибание и разгибание рук в упоре лежа на полу, количество раз"]
[6]
[7]
[8]
[9]
[10]

{"sheet":"волейбол","index":3,"n_rows":36,"n_cols":25,"rows_kept":36,"cut":false,"hidden":false,"merged":[[3,7,3,8],[0,0,0,24],[1,0,1,24],[2,0,2,1],[2,2,2,7],[2,8,2,10],[2,11,2,14],[2,15,2,18],[2,19,2,24],[3,0,4,0],[3,1,4,1],[3,2,4,2],[3,3,3,4],[3,5,3,6],[25,1,25,24],[3,21,3,22],[3,23,4,23],[3,24,4,24],[21,0,21,2],[22,0,22,2],[22,3,22,10],[22,11,22,12],[22,13,22,20],[22,21,22,22],[3,9,3,10],[3,11,3,12],[3,13,3,14],[3,15,3,16],[3,17,3,18],[3,19,3,20],[23,0,23,1],[23,3,23,5],[23,6,23,12],[23,13,23,16],[23,17,23,22],[32,1,32,24],[33,1,33,24],[34,1,34,24],[35,1,35,24],[26,1,26,24],[27,1,27,24],[28,1,28,24],[29,1,29,24],[30,1,30,24],[31,1,31,24]]}
[" П Р О Т О К О Л"]
["приема контрольно переводных нормативов (КПН)"]
["вид спорта-",null,"волейбол",null,null,null,null,null,"группа-",null,null,"СОГ",null,null,null,"тренер-"]
["№","Ф.И.","возраст",1,null,2,null,3,null,4,null,5,null,6,null,7,null,8,null,9,null,10,null,"Теория","средняя оценка"]
[null,null,null,"р","о","р","о","р","о","р","о","р","о","р","о","р","о","р","о","р","о","р","о"]
[1,null,null,null,null,null,null,null,null,null,null,null,null,null,null,null,null,null,null,null,null,null,null,null,{"$f":"(E6+G6+I6+K6+M6+O6+Q6+S6+U6+W6)/10","v":0}]
[2,null,null,null,null,null,null,null,null,null,null,null,null,null,null,null,null,null,null,null,null,null,null,null,{"$f":"(E7+G7+I7+K7+M7+O7+Q7+S7+U7+W7)/10","v":0}]
[3,null,null,null,null,null,null,null,null,null,null,null,null,null,null,null,null,null,null,null,null,null,null,null,0]
[4,null,null,null,null,null,null,null,null,null,null,null,null,null,null,null,null,null,null,null,null,null,null,null,0]
[5,null,null,null,null,null,null,null,null,null,null,null,null,null,null,null,null,null,null,null,null,null,null,null,0]
[6,null,null,null,null,null,null,null,null,null,null,null,null,null,null,null,null,null,null,null,null,null,null,null,0]
[7,null,null,null,null,null,null,null,null,null,null,null,null,null,null,null,null,null,null,null,null,null,null,null,0]
[8,null,null,null,null,null,null,null,null,null,null,null,null,null,null,null,null,null,null,null,null,null,null,null,0]
[9,null,null,null,null,null,null,null,null,null,null,null,null,null,null,null,null,null,null,null,null,null,null,null,0]
[10,null,null,null,null,null,null,null,null,null,null,null,null,null,null,null,null,null,null,null,null,null,null,null,0]
[11,null,null,null,null,null,null,null,null,null,null,null,null,null,null,null,null,null,null,null,null,null,null,null,0]
[12,null,null,null,null,null,null,null,null,null,null,null,null,null,null,null,null,null,null,null,null,null,null,null,0]
[13,null,null,null,null,null,null,null,null,null,null,null,null,null,null,null,null,null,null,null,null,null,null,null,0]
[14,null,null,null,null,null,null,null,null,null,null,null,null,null,null,null,null,null,null,null,null,null,null,null,0]
[15,null,null,null,null,null,null,null,null,null,null,null,null,null,null,null,null,null,null,null,null,null,null,null,0]
[16,null,null,null,null,null,null,null,null,null,null,null,null,null,null,null,null,null,null,null,null,null,null,null,0]
["средний результат/оценка по группе",null,null,{"$f":"(D6+D7+D8+D9+D10+D11+D12+D13+D14+D15+D16+D17+D18+D19+D20+D21)/16","v":0},{"$f":"(E6+E7+E8+E9+E10+E11+E12+E13+E14+E15+E16+E17+E18+E19+E20+E21)/16","v":0},0,0,0,0,0,0,0,0,0,0,0,0,0,0,0,0,0,0,{"$f":"(X6+X7+X8+X9+X10+X11+X12+X13+X14+X15+X16+X17+X18+X19+X20+X21)/16","v":0},{"$f":"(Y6+Y7+Y8+Y9+Y10+Y11+Y12+Y13+Y14+Y15+Y16+Y17+Y18+Y19+Y20+Y21)/16","v":0}]
["средний балл по",null,null,"ОФП",null,null,null,null,null,null,null,{"$f":"(E22+G22+I22+K22+M22)/5","v":0},null,"СФП",null,null,null,null,null,null,null,{"$f":"(O22+Q22+S22+U22+W22)/5","v":0}]
["Дата приема КПН",null,null,"Гл.судья ",null,null,null,null,null,null,null,null,null,"Гл.секретарь"]
[]
["№","НАИМЕНОВАНИЕ КПН: № 1-5 - ОФП; 6-10 СФП"]
[1,"Бег на время (30, 60, 100  м), дистанция в зависимости от возраста, с низкого или высокого старта"]
[2,"Бег на время (500, 1000,2000, 3000 м), в зависимости от возраста и пола"]
[3,"Прыжок в длину с места (см), на дальность"]
[4,"Подтягивание на прекладине низкой или высокой, в завистимости от возраста и пола, количество раз "]
[5,"Сгибание и разгибание рук в упоре лежа на полу, количество раз"]
[6]
[7]
[8]
[9]
[10]

{"sheet":"конный спорт","index":4,"n_rows":36,"n_cols":25,"rows_kept":36,"cut":false,"hidden":false,"merged":[[3,7,3,8],[0,0,0,24],[1,0,1,24],[2,0,2,1],[2,2,2,7],[2,8,2,10],[2,11,2,14],[2,15,2,18],[2,19,2,24],[3,0,4,0],[3,1,4,1],[3,2,4,2],[3,3,3,4],[3,5,3,6],[25,1,25,24],[3,21,3,22],[3,23,4,23],[3,24,4,24],[21,0,21,2],[22,0,22,2],[22,3,22,10],[22,11,22,12],[22,13,22,20],[22,21,22,22],[3,9,3,10],[3,11,3,12],[3,13,3,14],[3,15,3,16],[3,17,3,18],[3,19,3,20],[23,0,23,1],[23,3,23,5],[23,6,23,12],[23,13,23,16],[23,17,23,22],[32,1,32,24],[33,1,33,24],[34,1,34,24],[35,1,35,24],[26,1,26,24],[27,1,27,24],[28,1,28,24],[29,1,29,24],[30,1,30,24],[31,1,31,24]]}
[" П Р О Т О К О Л"]
["приема контрольно переводных нормативов (КПН)"]
["вид спорта-",null,"конный спорт",null,null,null,null,null,"группа-",null,null,"СОГ",null,null,null,"тренер-"]
["№","Ф.И.","возраст",1,null,2,null,3,null,4,null,5,null,6,null,7,null,8,null,9,null,10,null,"Теория","средняя оценка"]
[null,null,null,"р","о","р","о","р","о","р","о","р","о","р","о","р","о","р","о","р","о","р","о"]
[1,null,null,null,null,null,null,null,null,null,null,null,null,null,null,null,null,null,null,null,null,null,null,null,{"$f":"(E6+G6+I6+K6+M6+O6+Q6+S6+U6+W6)/10","v":0}]
[2,null,null,null,null,null,null,null,null,null,null,null,null,null,null,null,null,null,null,null,null,null,null,null,{"$f":"(E7+G7+I7+K7+M7+O7+Q7+S7+U7+W7)/10","v":0}]
[3,null,null,null,null,null,null,null,null,null,null,null,null,null,null,null,null,null,null,null,null,null,null,null,0]
[4,null,null,null,null,null,null,null,null,null,null,null,null,null,null,null,null,null,null,null,null,null,null,null,0]
[5,null,null,null,null,null,null,null,null,null,null,null,null,null,null,null,null,null,null,null,null,null,null,null,0]
[6,null,null,null,null,null,null,null,null,null,null,null,null,null,null,null,null,null,null,null,null,null,null,null,0]
[7,null,null,null,null,null,null,null,null,null,null,null,null,null,null,null,null,null,null,null,null,null,null,null,0]
[8,null,null,null,null,null,null,null,null,null,null,null,null,null,null,null,null,null,null,null,null,null,null,null,0]
[9,null,null,null,null,null,null,null,null,null,null,null,null,null,null,null,null,null,null,null,null,null,null,null,0]
[10,null,null,null,null,null,null,null,null,null,null,null,null,null,null,null,null,null,null,null,null,null,null,null,0]
[11,null,null,null,null,null,null,null,null,null,null,null,null,null,null,null,null,null,null,null,null,null,null,null,0]
[12,null,null,null,null,null,null,null,null,null,null,null,null,null,null,null,null,null,null,null,null,null,null,null,0]
[13,null,null,null,null,null,null,null,null,null,null,null,null,null,null,null,null,null,null,null,null,null,null,null,0]
[14,null,null,null,null,null,null,null,null,null,null,null,null,null,null,null,null,null,null,null,null,null,null,null,0]
[15,null,null,null,null,null,null,null,null,null,null,null,null,null,null,null,null,null,null,null,null,null,null,null,0]
[16,null,null,null,null,null,null,null,null,null,null,null,null,null,null,null,null,null,null,null,null,null,null,null,0]
["средний результат/оценка по группе",null,null,{"$f":"(D6+D7+D8+D9+D10+D11+D12+D13+D14+D15+D16+D17+D18+D19+D20+D21)/16","v":0},{"$f":"(E6+E7+E8+E9+E10+E11+E12+E13+E14+E15+E16+E17+E18+E19+E20+E21)/16","v":0},0,0,0,0,0,0,0,0,0,0,0,0,0,0,0,0,0,0,{"$f":"(X6+X7+X8+X9+X10+X11+X12+X13+X14+X15+X16+X17+X18+X19+X20+X21)/16","v":0},{"$f":"(Y6+Y7+Y8+Y9+Y10+Y11+Y12+Y13+Y14+Y15+Y16+Y17+Y18+Y19+Y20+Y21)/16","v":0}]
["средний балл по",null,null,"ОФП",null,null,null,null,null,null,null,{"$f":"(E22+G22+I22+K22+M22)/5","v":0},null,"СФП",null,null,null,null,null,null,null,{"$f":"(O22+Q22+S22+U22+W22)/5","v":0}]
["Дата приема КПН",null,null,"Гл.судья ",null,null,null,null,null,null,null,null,null,"Гл.секретарь"]
[]
["№","НАИМЕНОВАНИЕ КПН: № 1-5 - ОФП; 6-10 СФП"]
[1,"Бег на время (30, 60, 100  м), дистанция в зависимости от возраста, с низкого или высокого старта"]
[2,"Бег на время (500, 1000,2000, 3000 м), в зависимости от возраста и пола"]
[3,"Прыжок в длину с места (см), на дальность"]
[4,"Подтягивание на прекладине низкой или высокой, в завистимости от возраста и пола, количество раз "]
[5,"Сгибание и разгибание рук в упоре лежа на полу, количество раз"]
[6]
[7]
[8]
[9]
[10]

{"sheet":"л атлетика","index":5,"n_rows":36,"n_cols":25,"rows_kept":36,"cut":false,"hidden":false,"merged":[[3,7,3,8],[0,0,0,24],[1,0,1,24],[2,0,2,1],[2,2,2,7],[2,8,2,10],[2,11,2,14],[2,15,2,18],[2,19,2,24],[3,0,4,0],[3,1,4,1],[3,2,4,2],[3,3,3,4],[3,5,3,6],[25,1,25,24],[3,21,3,22],[3,23,4,23],[3,24,4,24],[21,0,21,2],[22,0,22,2],[22,3,22,10],[22,11,22,12],[22,13,22,20],[22,21,22,22],[3,9,3,10],[3,11,3,12],[3,13,3,14],[3,15,3,16],[3,17,3,18],[3,19,3,20],[23,0,23,1],[23,3,23,5],[23,6,23,12],[23,13,23,16],[23,17,23,22],[32,1,32,24],[33,1,33,24],[34,1,34,24],[35,1,35,24],[26,1,26,24],[27,1,27,24],[28,1,28,24],[29,1,29,24],[30,1,30,24],[31,1,31,24]]}
[" П Р О Т О К О Л"]
["приема контрольно переводных нормативов (КПН)"]
["вид спорта-",null,"легкая атлетика",null,null,null,null,null,"группа-",null,null,"СОГ",null,null,null,"тренер-"]
["№","Ф.И.","возраст",1,null,2,null,3,null,4,null,5,null,6,null,7,null,8,null,9,null,10,null,"Теория","средняя оценка"]
[null,null,null,"р","о","р","о","р","о","р","о","р","о","р","о","р","о","р","о","р","о","р","о"]
[1,null,null,null,null,null,null,null,null,null,null,null,null,null,null,null,null,null,null,null,null,null,null,null,{"$f":"(E6+G6+I6+K6+M6+O6+Q6+S6+U6+W6)/10","v":0}]
[2,null,null,null,null,null,null,null,null,null,null,null,null,null,null,null,null,null,null,null,null,null,null,null,{"$f":"(E7+G7+I7+K7+M7+O7+Q7+S7+U7+W7)/10","v":0}]
[3,null,null,null,null,null,null,null,null,null,null,null,null,null,null,null,null,null,null,null,null,null,null,null,0]
[4,null,null,null,null,null,null,null,null,null,null,null,null,null,null,null,null,null,null,null,null,null,null,null,0]
[5,null,null,null,null,null,null,null,null,null,null,null,null,null,null,null,null,null,null,null,null,null,null,null,0]
[6,null,null,null,null,null,null,null,null,null,null,null,null,null,null,null,null,null,null,null,null,null,null,null,0]
[7,null,null,null,null,null,null,null,null,null,null,null,null,null,null,null,null,null,null,null,null,null,null,null,0]
[8,null,null,null,null,null,null,null,null,null,null,null,null,null,null,null,null,null,null,null,null,null,null,null,0]
[9,null,null,null,null,null,null,null,null,null,null,null,null,null,null,null,null,null,null,null,null,null,null,null,0]
[10,null,null,null,null,null,null,null,null,null,null,null,null,null,null,null,null,null,null,null,null,null,null,null,0]
[11,null,null,null,null,null,null,null,null,null,null,null,null,null,null,null,null,null,null,null,null,null,null,null,0]
[12,null,null,null,null,null,null,null,null,null,null,null,null,null,null,null,null,null,null,null,null,null,null,null,0]
[13,null,null,null,null,null,null,null,null,null,null,null,null,null,null,null,null,null,null,null,null,null,null,null,0]
[14,null,null,null,null,null,null,null,null,null,null,null,null,null,null,null,null,null,null,null,null,null,null,null,0]
[15,null,null,null,null,null,null,null,null,null,null,null,null,null,null,null,null,null,null,null,null,null,null,null,0]
[16,null,null,null,null,null,null,null,null,null,null,null,null,null,null,null,null,null,null,null,null,null,null,null,0]
["средний результат/оценка по группе",null,null,{"$f":"(D6+D7+D8+D9+D10+D11+D12+D13+D14+D15+D16+D17+D18+D19+D20+D21)/16","v":0},{"$f":"(E6+E7+E8+E9+E10+E11+E12+E13+E14+E15+E16+E17+E18+E19+E20+E21)/16","v":0},0,0,0,0,0,0,0,0,0,0,0,0,0,0,0,0,0,0,{"$f":"(X6+X7+X8+X9+X10+X11+X12+X13+X14+X15+X16+X17+X18+X19+X20+X21)/16","v":0},{"$f":"(Y6+Y7+Y8+Y9+Y10+Y11+Y12+Y13+Y14+Y15+Y16+Y17+Y18+Y19+Y20+Y21)/16","v":0}]
["средний балл по",null,null,"ОФП",null,null,null,null,null,null,null,{"$f":"(E22+G22+I22+K22+M22)/5","v":0},null,"СФП",null,null,null,null,null,null,null,{"$f":"(O22+Q22+S22+U22+W22)/5","v":0}]
["Дата приема КПН",null,null,"Гл.судья ",null,null,null,null,null,null,null,null,null,"Гл.секретарь"]
[]
["№","НАИМЕНОВАНИЕ КПН: № 1-5 - ОФП; 6-10 СФП"]
[1,"Бег на время (30, 60, 100  м), дистанция в зависимости от возраста, с низкого или высокого старта"]
[2,"Бег на время (500, 1000,2000, 3000 м), в зависимости от возраста и пола"]
[3,"Прыжок в длину с места (см), на дальность"]
[4,"Подтягивание на прекладине низкой или высокой, в завистимости от возраста и пола, количество раз "]
[5,"Сгибание и разгибание рук в упоре лежа на полу, количество раз"]
[6]
[7]
[8]
[9]
[10]

{"sheet":"л гонки","index":6,"n_rows":36,"n_cols":25,"rows_kept":36,"cut":false,"hidden":false,"merged":[[3,7,3,8],[0,0,0,24],[1,0,1,24],[2,0,2,1],[2,2,2,7],[2,8,2,10],[2,11,2,14],[2,15,2,18],[2,19,2,24],[3,0,4,0],[3,1,4,1],[3,2,4,2],[3,3,3,4],[3,5,3,6],[25,1,25,24],[3,21,3,22],[3,23,4,23],[3,24,4,24],[21,0,21,2],[22,0,22,2],[22,3,22,10],[22,11,22,12],[22,13,22,20],[22,21,22,22],[3,9,3,10],[3,11,3,12],[3,13,3,14],[3,15,3,16],[3,17,3,18],[3,19,3,20],[23,0,23,1],[23,3,23,5],[23,6,23,12],[23,13,23,16],[23,17,23,22],[32,1,32,24],[33,1,33,24],[34,1,34,24],[35,1,35,24],[26,1,26,24],[27,1,27,24],[28,1,28,24],[29,1,29,24],[30,1,30,24],[31,1,31,24]]}
[" П Р О Т О К О Л"]
["приема контрольно переводных нормативов (КПН)"]
["вид спорта-",null,"лыжные гонки",null,null,null,null,null,"группа-",null,null,"СОГ",null,null,null,"тренер-"]
["№","Ф.И.","возраст",1,null,2,null,3,null,4,null,5,null,6,null,7,null,8,null,9,null,10,null,"Теория","средняя оценка"]
[null,null,null,"р","о","р","о","р","о","р","о","р","о","р","о","р","о","р","о","р","о","р","о"]
[1,null,null,null,null,null,null,null,null,null,null,null,null,null,null,null,null,null,null,null,null,null,null,null,{"$f":"(E6+G6+I6+K6+M6+O6+Q6+S6+U6+W6)/10","v":0}]
[2,null,null,null,null,null,null,null,null,null,null,null,null,null,null,null,null,null,null,null,null,null,null,null,{"$f":"(E7+G7+I7+K7+M7+O7+Q7+S7+U7+W7)/10","v":0}]
[3,null,null,null,null,null,null,null,null,null,null,null,null,null,null,null,null,null,null,null,null,null,null,null,0]
[4,null,null,null,null,null,null,null,null,null,null,null,null,null,null,null,null,null,null,null,null,null,null,null,0]
[5,null,null,null,null,null,null,null,null,null,null,null,null,null,null,null,null,null,null,null,null,null,null,null,0]
[6,null,null,null,null,null,null,null,null,null,null,null,null,null,null,null,null,null,null,null,null,null,null,null,0]
[7,null,null,null,null,null,null,null,null,null,null,null,null,null,null,null,null,null,null,null,null,null,null,null,0]
[8,null,null,null,null,null,null,null,null,null,null,null,null,null,null,null,null,null,null,null,null,null,null,null,0]
[9,null,null,null,null,null,null,null,null,null,null,null,null,null,null,null,null,null,null,null,null,null,null,null,0]
[10,null,null,null,null,null,null,null,null,null,null,null,null,null,null,null,null,null,null,null,null,null,null,null,0]
[11,null,null,null,null,null,null,null,null,null,null,null,null,null,null,null,null,null,null,null,null,null,null,null,0]
[12,null,null,null,null,null,null,null,null,null,null,null,null,null,null,null,null,null,null,null,null,null,null,null,0]
[13,null,null,null,null,null,null,null,null,null,null,null,null,null,null,null,null,null,null,null,null,null,null,null,0]
[14,null,null,null,null,null,null,null,null,null,null,null,null,null,null,null,null,null,null,null,null,null,null,null,0]
[15,null,null,null,null,null,null,null,null,null,null,null,null,null,null,null,null,null,null,null,null,null,null,null,0]
[16,null,null,null,null,null,null,null,null,null,null,null,null,null,null,null,null,null,null,null,null,null,null,null,0]
["средний результат/оценка по группе",null,null,{"$f":"(D6+D7+D8+D9+D10+D11+D12+D13+D14+D15+D16+D17+D18+D19+D20+D21)/16","v":0},{"$f":"(E6+E7+E8+E9+E10+E11+E12+E13+E14+E15+E16+E17+E18+E19+E20+E21)/16","v":0},0,0,0,0,0,0,0,0,0,0,0,0,0,0,0,0,0,0,{"$f":"(X6+X7+X8+X9+X10+X11+X12+X13+X14+X15+X16+X17+X18+X19+X20+X21)/16","v":0},{"$f":"(Y6+Y7+Y8+Y9+Y10+Y11+Y12+Y13+Y14+Y15+Y16+Y17+Y18+Y19+Y20+Y21)/16","v":0}]
["средний балл по",null,null,"ОФП",null,null,null,null,null,null,null,{"$f":"(E22+G22+I22+K22+M22)/5","v":0},null,"СФП",null,null,null,null,null,null,null,{"$f":"(O22+Q22+S22+U22+W22)/5","v":0}]
["Дата приема КПН",null,null,"Гл.судья ",null,null,null,null,null,null,null,null,null,"Гл.секретарь"]
[]
["№","НАИМЕНОВАНИЕ КПН: № 1-5 - ОФП; 6-10 СФП"]
[1,"Бег на время (30, 60, 100  м), дистанция в зависимости от возраста, с низкого или высокого старта"]
[2,"Бег на время (500, 1000,2000, 3000 м), в зависимости от возраста и пола"]
[3,"Прыжок в длину с места (см), на дальность"]
[4,"Подтягивание на прекладине низкой или высокой, в завистимости от возраста и пола, количество раз "]
[5,"Сгибание и разгибание рук в упоре лежа на полу, количество раз"]
[6]
[7]
[8]
[9]
[10]

{"sheet":"м футбол","index":7,"n_rows":40,"n_cols":25,"rows_kept":40,"cut":false,"hidden":false,"merged":[[23,0,23,2],[23,3,23,10],[23,11,23,12],[3,2,4,2],[3,21,3,22],[3,1,4,1],[0,0,0,24],[1,0,1,24],[3,9,3,10],[3,11,3,12],[3,13,3,14],[3,15,3,16],[3,17,3,18],[3,19,3,20],[3,0,4,0],[2,7,2,10],[2,2,2,6],[3,24,4,24],[3,7,3,8],[3,3,3,4],[3,23,4,23],[3,5,3,6],[26,1,26,24],[25,1,25,24],[27,1,27,24],[28,1,28,24],[2,15,2,18],[2,19,2,24],[23,21,23,22],[24,13,24,16],[2,0,2,1],[2,11,2,14],[23,13,23,20],[24,0,24,1],[24,3,24,5],[24,6,24,12],[24,17,24,22],[22,0,22,2],[29,1,29,24],[30,1,30,24],[32,1,32,24],[31,1,31,24],[33,1,33,24],[34,1,34,24],[35,1,35,24],[37,2,37,24],[36,2,36,24],[36,0,39,1],[38,2,38,24],[39,2,39,24]]}
[" П Р О Т О К О Л"]
["приема контрольно переводных нормативов (КПН)"]
["вид спорта-",null,"мини-футбол",null,null,null,null,"группа-",null,null,null,"СОГ",null,null,null,"тренер-"]
["№","Ф.И.","возраст",1,null,2,null,3,null,4,null,5,null,6,null,7,null,8,null,9,null,10,null,"Теория","средняя оценка"]
[null,null,null,"р","о","р","о","р","о","р","о","р","о","р","о","р","о","р","о","р","о","р","о"]
[1,null,null,null,null,null,null,null,null,null,null,null,null,null,null,null,null,null,null,null,null,null,null,null,{"$f":"(E6+G6+I6+K6+M6+O6+Q6+S6+U6+W6)/10","v":0}]
[2,null,null,null,null,null,null,null,null,null,null,null,null,null,null,null,null,null,null,null,null,null,null,null,0]
[3,null,null,null,null,null,null,null,null,null,null,null,null,null,null,null,null,null,null,null,null,null,null,null,0]
[4,null,null,null,null,null,null,null,null,null,null,null,null,null,null,null,null,null,null,null,null,null,null,null,0]
[5,null,null,null,null,null,null,null,null,null,null,null,null,null,null,null,null,null,null,null,null,null,null,null,0]
[6,null,null,null,null,null,null,null,null,null,null,null,null,null,null,null,null,null,null,null,null,null,null,null,0]
[7,null,null,null,null,null,null,null,null,null,null,null,null,null,null,null,null,null,null,null,null,null,null,null,0]
[8,null,null,null,null,null,null,null,null,null,null,null,null,null,null,null,null,null,null,null,null,null,null,null,0]
[9,null,null,null,null,null,null,null,null,null,null,null,null,null,null,null,null,null,null,null,null,null,null,null,0]
[10,null,null,null,null,null,null,null,null,null,null,null,null,null,null,null,null,null,null,null,null,null,null,null,0]
[11,null,null,null,null,null,null,null,null,null,null,null,null,null,null,null,null,null,null,null,null,null,null,null,0]
[12,null,null,null,null,null,null,null,null,null,null,null,null,null,null,null,null,null,null,null,null,null,null,null,0]
[13,null,null,null,null,null,null,null,null,null,null,null,null,null,null,null,null,null,null,null,null,null,null,null,0]
[14,null,null,null,null,null,null,null,null,null,null,null,null,null,null,null,null,null,null,null,null,null,null,null,0]
[15,null,null,null,null,null,null,null,null,null,null,null,null,null,null,null,null,null,null,null,null,null,null,null,0]
[16]
[null,null,null,null,null,null,null,null,null,null,null,null,null,null,null,null,null,null,null,null,null,null,null,null,0]
["средний результат/оценка по группе",null,null,{"$f":"(D6+D7+D8+D9+D10+D11+D12+D13+D14+D15+D16+D17+D18+D19+D20+D22)/16","v":0},0,0,0,0,0,0,0,0,0,0,0,0,0,0,0,0,0,0,0,0,0]
["средний балл по",null,null,"ОФП",null,null,null,null,null,null,null,{"$f":"(E23+G23+I23+K23+M23)/5","v":0},null,"СФП",null,null,null,null,null,null,null,{"$f":"(O23+Q23+S23+U23+W23)/5","v":0}]
["Дата приема КПН",null,null,"Гл.судья ",null,null,null,null,null,null,null,null,null,"Гл.секретарь"]
["№","НАИМЕНОВАНИЕ КПН: № 1-5 - ОФП; 6-10 СФП"]
[1,"Бег на время (30, 60, 100  м), дистанция в зависимости от возраста, с низкого или высокого старта"]
[2,"Бег на время (500, 1000,2000, 3000 м), в зависимости от возраста и пола"]
[3,"Прыжок в длину с места (см), на дальность"]
[4,"Подтягивание на прекладине низкой или высокой, в завистимости от возраста и пола, количество раз "]
[5,"Сгибание и разгибание рук в упоре лежа на полу, количество раз"]
[6,"Бег 30 м с ведением мяча, на время"]
[7,"Жонглирование мячом ногами 6-11 лет; жонглирование мячом (комплексное) 12-18 лет, количество раз"]
[8,"Ведение мяча по \"восьмерке\", норматив выполнен, при улучшении показателей (времени) предидущего тестирования "]
[9,"Обегание стоек и удар носком в цель 7-11 лет; ведение, обводка стоек и удар в ворота 12-18 лет, "]
[10,"Ведение мяча по границе штрафной площади, норматив выполнен, при улучшении показателей (времени) предидущего тестирования "]
["Для вратарей нормативы:                                                                                                 +                                                            №7 норматив полевых игроков",null,"6 Тройной прыжок с места (м), на дальность"]
[null,null,"8 Врасывание мяча на дальность (м), "]
[null,null,"9 Бросок мяча в цель упражение №1, количество раз"]
[null,null,"10 Бросок мяча в цель упражение №2, количество раз"]

{"sheet":"н теннис","index":8,"n_rows":36,"n_cols":25,"rows_kept":36,"cut":false,"hidden":false,"merged":[[3,7,3,8],[0,0,0,24],[1,0,1,24],[2,0,2,1],[2,2,2,7],[2,8,2,10],[2,11,2,14],[2,15,2,18],[2,19,2,24],[3,0,4,0],[3,1,4,1],[3,2,4,2],[3,3,3,4],[3,5,3,6],[25,1,25,24],[3,21,3,22],[3,23,4,23],[3,24,4,24],[21,0,21,2],[22,0,22,2],[22,3,22,10],[22,11,22,12],[22,13,22,20],[22,21,22,22],[3,9,3,10],[3,11,3,12],[3,13,3,14],[3,15,3,16],[3,17,3,18],[3,19,3,20],[23,0,23,1],[23,3,23,5],[23,6,23,12],[23,13,23,16],[23,17,23,22],[32,1,32,24],[33,1,33,24],[34,1,34,24],[35,1,35,24],[26,1,26,24],[27,1,27,24],[28,1,28,24],[29,1,29,24],[30,1,30,24],[31,1,31,24]]}
[" П Р О Т О К О Л"]
["приема контрольно переводных нормативов (КПН)"]
["вид спорта-",null,"настольный теннис",null,null,null,null,null,"группа-",null,null,"СОГ",null,null,null,"тренер-"]
["№","Ф.И.","возраст",1,null,2,null,3,null,4,null,5,null,6,null,7,null,8,null,9,null,10,null,"Теория","средняя оценка"]
[null,null,null,"р","о","р","о","р","о","р","о","р","о","р","о","р","о","р","о","р","о","р","о"]
[1,null,null,null,null,null,null,null,null,null,null,null,null,null,null,null,null,null,null,null,null,null,null,null,{"$f":"(E6+G6+I6+K6+M6+O6+Q6+S6+U6+W6)/10","v":0}]
[2,null,null,null,null,null,null,null,null,null,null,null,null,null,null,null,null,null,null,null,null,null,null,null,{"$f":"(E7+G7+I7+K7+M7+O7+Q7+S7+U7+W7)/10","v":0}]
[3,null,null,null,null,null,null,null,null,null,null,null,null,null,null,null,null,null,null,null,null,null,null,null,0]
[4,null,null,null,null,null,null,null,null,null,null,null,null,null,null,null,null,null,null,null,null,null,null,null,0]
[5,null,null,null,null,null,null,null,null,null,null,null,null,null,null,null,null,null,null,null,null,null,null,null,0]
[6,null,null,null,null,null,null,null,null,null,null,null,null,null,null,null,null,null,null,null,null,null,null,null,0]
[7,null,null,null,null,null,null,null,null,null,null,null,null,null,null,null,null,null,null,null,null,null,null,null,0]
[8,null,null,null,null,null,null,null,null,null,null,null,null,null,null,null,null,null,null,null,null,null,null,null,0]
[9,null,null,null,null,null,null,null,null,null,null,null,null,null,null,null,null,null,null,null,null,null,null,null,0]
[10,null,null,null,null,null,null,null,null,null,null,null,null,null,null,null,null,null,null,null,null,null,null,null,0]
[11,null,null,null,null,null,null,null,null,null,null,null,null,null,null,null,null,null,null,null,null,null,null,null,0]
[12,null,null,null,null,null,null,null,null,null,null,null,null,null,null,null,null,null,null,null,null,null,null,null,0]
[13,null,null,null,null,null,null,null,null,null,null,null,null,null,null,null,null,null,null,null,null,null,null,null,0]
[14,null,null,null,null,null,null,null,null,null,null,null,null,null,null,null,null,null,null,null,null,null,null,null,0]
[15,null,null,null,null,null,null,null,null,null,null,null,null,null,null,null,null,null,null,null,null,null,null,null,0]
[16,null,null,null,null,null,null,null,null,null,null,null,null,null,null,null,null,null,null,null,null,null,null,null,0]
["средний результат/оценка по группе",null,null,{"$f":"(D6+D7+D8+D9+D10+D11+D12+D13+D14+D15+D16+D17+D18+D19+D20+D21)/16","v":0},{"$f":"(E6+E7+E8+E9+E10+E11+E12+E13+E14+E15+E16+E17+E18+E19+E20+E21)/16","v":0},0,0,0,0,0,0,0,0,0,0,0,0,0,0,0,0,0,0,{"$f":"(X6+X7+X8+X9+X10+X11+X12+X13+X14+X15+X16+X17+X18+X19+X20+X21)/16","v":0},{"$f":"(Y6+Y7+Y8+Y9+Y10+Y11+Y12+Y13+Y14+Y15+Y16+Y17+Y18+Y19+Y20+Y21)/16","v":0}]
["средний балл по",null,null,"ОФП",null,null,null,null,null,null,null,{"$f":"(E22+G22+I22+K22+M22)/5","v":0},null,"СФП",null,null,null,null,null,null,null,{"$f":"(O22+Q22+S22+U22+W22)/5","v":0}]
["Дата приема КПН",null,null,"Гл.судья ",null,null,null,null,null,null,null,null,null,"Гл.секретарь"]
[]
["№","НАИМЕНОВАНИЕ КПН: № 1-5 - ОФП; 6-10 СФП"]
[1,"Бег на время (30, 60, 100  м), дистанция в зависимости от возраста, с низкого или высокого старта"]
[2,"Бег на время (500, 1000,2000, 3000 м), в зависимости от возраста и пола"]
[3,"Прыжок в длину с места (см), на дальность"]
[4,"Подтягивание на прекладине низкой или высокой, в завистимости от возраста и пола, количество раз "]
[5,"Сгибание и разгибание рук в упоре лежа на полу, количество раз"]
[6]
[7]
[8]
[9]
[10]

{"sheet":"ОФП","index":9,"n_rows":36,"n_cols":25,"rows_kept":36,"cut":false,"hidden":false,"merged":[[3,7,3,8],[0,0,0,24],[1,0,1,24],[2,0,2,1],[2,2,2,7],[2,8,2,10],[2,11,2,14],[2,15,2,18],[2,19,2,24],[3,0,4,0],[3,1,4,1],[3,2,4,2],[3,3,3,4],[3,5,3,6],[25,1,25,24],[3,21,3,22],[3,23,4,23],[3,24,4,24],[21,0,21,2],[22,0,22,2],[22,3,22,10],[22,11,22,12],[22,13,22,20],[22,21,22,22],[3,9,3,10],[3,11,3,12],[3,13,3,14],[3,15,3,16],[3,17,3,18],[3,19,3,20],[23,0,23,1],[23,3,23,5],[23,6,23,12],[23,13,23,16],[23,17,23,22],[32,1,32,24],[33,1,33,24],[34,1,34,24],[35,1,35,24],[26,1,26,24],[27,1,27,24],[28,1,28,24],[29,1,29,24],[30,1,30,24],[31,1,31,24]]}
[" П Р О Т О К О Л"]
["приема контрольно переводных нормативов (КПН)"]
["вид спорта-",null,"ОФП ",null,null,null,null,null,"группа-",null,null,"СОГ 3",null,null,null,"тренер-",null,null,null,"Мичкин О.В."]
["№","Ф.И.","возраст",1,null,2,null,3,null,4,null,5,null,6,null,7,null,8,null,9,null,10,null,"Теория","средняя оценка"]
[null,null,null,"р","о","р","о","р","о","р","о","р","о","р","о","р","о","р","о","р","о","р","о"]
[1,"Заирова Зарина",7,6.7,3,"б.у",5,110,3,4,2,2,3,null,null,null,null,null,null,null,null,null,null,5,{"$f":"(E6+G6+I6+K6+M6)/5","v":3.2}]
[2,"Игаева Анастасия",8,6.6,3,"б.у",5,110,3,2,2,1,2,null,null,null,null,null,null,null,null,null,null,5,{"$f":"(E7+G7+I7+K7+M7)/5","v":3}]
[3,"Коваленко Александра",8,6.4,4,"б,у",5,112,3,7,3,2,3,null,null,null,null,null,null,null,null,null,null,5,3.6]
[4,"Мелекесцева Анастасия",8,6,5,"б.у",5,123,5,8,3,3,4,null,null,null,null,null,null,null,null,null,null,5,4.4000000000000004]
[5,"Никишкин Кирилл",8,6.2,3,"б.у",5,114,3,4,2,3,4,null,null,null,null,null,null,null,null,null,null,5,3.4]
[6,"Никишкина Дарья",8,6,5,"б.у",5,116,4,8,4,4,5,null,null,null,null,null,null,null,null,null,null,5,4.5999999999999996]
[7,"Тупоносова Александра",9,6.2,4,"б.у",5,140,4,10,4,4,4,null,null,null,null,null,null,null,null,null,null,5,4.2]
[8,"Тупоносов Виталий",8,6.3,3,"б.у",5,126,5,7,3,2,3,null,null,null,null,null,null,null,null,null,null,5,3.8]
[9,"Верховцева Анна",8,6.1,3,"б.у",5,95,2,7,3,3,4,null,null,null,null,null,null,null,null,null,null,5,3.4]
[10,"Живаева Мария",8,5.9,5,"б.у",5,122,5,10,5,3,4,null,null,null,null,null,null,null,null,null,null,5,4.8]
[11,"Радаев Вадим",9,5.6,5,"б.у",5,158,4,11,5,2,3,null,null,null,null,null,null,null,null,null,null,5,4.4000000000000004]
[12,"Сальнов Никита",9,5.6,5,"б.у",5,156,4,9,4,4,5,null,null,null,null,null,null,null,null,null,null,5,4.5999999999999996]
[13,"Шаталов Сергей",8,6.2,4,"б.у",5,124,5,9,4,2,3,null,null,null,null,null,null,null,null,null,null,5,4.2]
[14,"Ященко Николай",8,6,5,"б.у",5,136,5,9,4,3,4,null,null,null,null,null,null,null,null,null,null,5,4.5999999999999996]
[15,"Курмаева Зарина",8,6.2,4,"б.у",5,115,4,8,4,4,5,null,null,null,null,null,null,null,null,null,null,5,4.4000000000000004]
[16]
["средний результат/оценка по группе",null,null,{"$f":"(D6+D7+D8+D9+D10+D11+D12+D13+D14+D15+D16+D17+D18+D19+D20)/15","v":6.1333333333333337},{"$f":"(E6+E7+E8+E9+E10+E11+E12+E13+E14+E15+E16+E17+E18+E19+E20)/15","v":4.0666666666666664},{"$error":"#VALUE!"},5,123.8,3.9333333333333331,7.5333333333333332,3.4666666666666668,2.8,3.7333333333333334,0,0,0,0,0,0,0,0,0,0,5,4.04]
["средний балл по",null,null,"ОФП",null,null,null,null,null,null,null,{"$f":"(E22+G22+I22+K22+M22)/5","v":4.0400000000000009},null,"СФП",null,null,null,null,null,null,null,{"$f":"(O22+Q22+S22+U22+W22)/5","v":0}]
["Дата приема КПН",null,"28.04.2017","Гл.судья ",null,null,null,null,null,null,null,null,null,"Гл.секретарь"]
[]
["№","НАИМЕНОВАНИЕ КПН: № 1-5 - ОФП; 6-10 СФП"]
[1,"Бег на время (30, 60, 100  м), дистанция в зависимости от возраста, с низкого или высокого старта"]
[2,"Бег на время (500, 1000,2000, 3000 м), в зависимости от возраста и пола"]
[3,"Прыжок в длину с места (см), на дальность"]
[4,"Подтягивание из виса (девочки из виса лежа)"]
[5,"Метание мяча в цель"]
[6]
[7]
[8]
[9]
[10]

{"sheet":"у бой","index":10,"n_rows":36,"n_cols":25,"rows_kept":36,"cut":false,"hidden":false,"merged":[[3,7,3,8],[0,0,0,24],[1,0,1,24],[2,0,2,1],[2,2,2,7],[2,8,2,10],[2,11,2,14],[2,15,2,18],[2,19,2,24],[3,0,4,0],[3,1,4,1],[3,2,4,2],[3,3,3,4],[3,5,3,6],[25,1,25,24],[3,21,3,22],[3,23,4,23],[3,24,4,24],[21,0,21,2],[22,0,22,2],[22,3,22,10],[22,11,22,12],[22,13,22,20],[22,21,22,22],[3,9,3,10],[3,11,3,12],[3,13,3,14],[3,15,3,16],[3,17,3,18],[3,19,3,20],[23,0,23,1],[23,3,23,5],[23,6,23,12],[23,13,23,16],[23,17,23,22],[32,1,32,24],[33,1,33,24],[34,1,34,24],[35,1,35,24],[26,1,26,24],[27,1,27,24],[28,1,28,24],[29,1,29,24],[30,1,30,24],[31,1,31,24]]}
[" П Р О Т О К О Л"]
["приема контрольно переводных нормативов (КПН)"]
["вид спорта-",null,"универсальный бой",null,null,null,null,null,"группа-",null,null,"СОГ",null,null,null,"тренер-"]
["№","Ф.И.","возраст",1,null,2,null,3,null,4,null,5,null,6,null,7,null,8,null,9,null,10,null,"Теория","средняя оценка"]
[null,null,null,"р","о","р","о","р","о","р","о","р","о","р","о","р","о","р","о","р","о","р","о"]
[1,null,null,null,null,null,null,null,null,null,null,null,null,null,null,null,null,null,null,null,null,null,null,null,{"$f":"(E6+G6+I6+K6+M6+O6+Q6+S6+U6+W6)/10","v":0}]
[2,null,null,null,null,null,null,null,null,null,null,null,null,null,null,null,null,null,null,null,null,null,null,null,{"$f":"(E7+G7+I7+K7+M7+O7+Q7+S7+U7+W7)/10","v":0}]
[3,null,null,null,null,null,null,null,null,null,null,null,null,null,null,null,null,null,null,null,null,null,null,null,0]
[4,null,null,null,null,null,null,null,null,null,null,null,null,null,null,null,null,null,null,null,null,null,null,null,0]
[5,null,null,null,null,null,null,null,null,null,null,null,null,null,null,null,null,null,null,null,null,null,null,null,0]
[6,null,null,null,null,null,null,null,null,null,null,null,null,null,null,null,null,null,null,null,null,null,null,null,0]
[7,null,null,null,null,null,null,null,null,null,null,null,null,null,null,null,null,null,null,null,null,null,null,null,0]
[8,null,null,null,null,null,null,null,null,null,null,null,null,null,null,null,null,null,null,null,null,null,null,null,0]
[9,null,null,null,null,null,null,null,null,null,null,null,null,null,null,null,null,null,null,null,null,null,null,null,0]
[10,null,null,null,null,null,null,null,null,null,null,null,null,null,null,null,null,null,null,null,null,null,null,null,0]
[11,null,null,null,null,null,null,null,null,null,null,null,null,null,null,null,null,null,null,null,null,null,null,null,0]
[12,null,null,null,null,null,null,null,null,null,null,null,null,null,null,null,null,null,null,null,null,null,null,null,0]
[13,null,null,null,null,null,null,null,null,null,null,null,null,null,null,null,null,null,null,null,null,null,null,null,0]
[14,null,null,null,null,null,null,null,null,null,null,null,null,null,null,null,null,null,null,null,null,null,null,null,0]
[15,null,null,null,null,null,null,null,null,null,null,null,null,null,null,null,null,null,null,null,null,null,null,null,0]
[16,null,null,null,null,null,null,null,null,null,null,null,null,null,null,null,null,null,null,null,null,null,null,null,0]
["средний результат/оценка по группе",null,null,{"$f":"(D6+D7+D8+D9+D10+D11+D12+D13+D14+D15+D16+D17+D18+D19+D20+D21)/16","v":0},{"$f":"(E6+E7+E8+E9+E10+E11+E12+E13+E14+E15+E16+E17+E18+E19+E20+E21)/16","v":0},0,0,0,0,0,0,0,0,0,0,0,0,0,0,0,0,0,0,{"$f":"(X6+X7+X8+X9+X10+X11+X12+X13+X14+X15+X16+X17+X18+X19+X20+X21)/16","v":0},{"$f":"(Y6+Y7+Y8+Y9+Y10+Y11+Y12+Y13+Y14+Y15+Y16+Y17+Y18+Y19+Y20+Y21)/16","v":0}]
["средний балл по",null,null,"ОФП",null,null,null,null,null,null,null,{"$f":"(E22+G22+I22+K22+M22)/5","v":0},null,"СФП",null,null,null,null,null,null,null,{"$f":"(O22+Q22+S22+U22+W22)/5","v":0}]
["Дата приема КПН",null,null,"Гл.судья ",null,null,null,null,null,null,null,null,null,"Гл.секретарь"]
[]
["№","НАИМЕНОВАНИЕ КПН: № 1-5 - ОФП; 6-10 СФП"]
[1,"Бег на время (30, 60, 100  м), дистанция в зависимости от возраста, с низкого или высокого старта"]
[2,"Бег на время (500, 1000,2000, 3000 м), в зависимости от возраста и пола"]
[3,"Прыжок в длину с места (см), на дальность"]
[4,"Подтягивание на прекладине низкой или высокой, в завистимости от возраста и пола, количество раз "]
[5,"Сгибание и разгибание рук в упоре лежа на полу, количество раз"]
[6]
[7]
[8]
[9]
[10]

{"sheet":"с ориентир","index":11,"n_rows":36,"n_cols":25,"rows_kept":36,"cut":false,"hidden":false,"merged":[[3,7,3,8],[0,0,0,24],[1,0,1,24],[2,0,2,1],[2,2,2,7],[2,8,2,10],[2,11,2,14],[2,15,2,18],[2,19,2,24],[3,0,4,0],[3,1,4,1],[3,2,4,2],[3,3,3,4],[3,5,3,6],[25,1,25,24],[3,21,3,22],[3,23,4,23],[3,24,4,24],[21,0,21,2],[22,0,22,2],[22,3,22,10],[22,11,22,12],[22,13,22,20],[22,21,22,22],[3,9,3,10],[3,11,3,12],[3,13,3,14],[3,15,3,16],[3,17,3,18],[3,19,3,20],[23,0,23,1],[23,3,23,5],[23,6,23,12],[23,13,23,16],[23,17,23,22],[32,1,32,24],[33,1,33,24],[34,1,34,24],[35,1,35,24],[26,1,26,24],[27,1,27,24],[28,1,28,24],[29,1,29,24],[30,1,30,24],[31,1,31,24]]}
[" П Р О Т О К О Л"]
["приема контрольно переводных нормативов (КПН)"]
["вид спорта-",null,"спортивное ориентирование",null,null,null,null,null,"группа-",null,null,"СОГ",null,null,null,"тренер-"]
["№","Ф.И.","возраст",1,null,2,null,3,null,4,null,5,null,6,null,7,null,8,null,9,null,10,null,"Теория","средняя оценка"]
[null,null,null,"р","о","р","о","р","о","р","о","р","о","р","о","р","о","р","о","р","о","р","о"]
[1,null,null,null,null,null,null,null,null,null,null,null,null,null,null,null,null,null,null,null,null,null,null,null,{"$f":"(E6+G6+I6+K6+M6+O6+Q6+S6+U6+W6)/10","v":0}]
[2,null,null,null,null,null,null,null,null,null,null,null,null,null,null,null,null,null,null,null,null,null,null,null,{"$f":"(E7+G7+I7+K7+M7+O7+Q7+S7+U7+W7)/10","v":0}]
[3,null,null,null,null,null,null,null,null,null,null,null,null,null,null,null,null,null,null,null,null,null,null,null,0]
[4,null,null,null,null,null,null,null,null,null,null,null,null,null,null,null,null,null,null,null,null,null,null,null,0]
[5,null,null,null,null,null,null,null,null,null,null,null,null,null,null,null,null,null,null,null,null,null,null,null,0]
[6,null,null,null,null,null,null,null,null,null,null,null,null,null,null,null,null,null,null,null,null,null,null,null,0]
[7,null,null,null,null,null,null,null,null,null,null,null,null,null,null,null,null,null,null,null,null,null,null,null,0]
[8,null,null,null,null,null,null,null,null,null,null,null,null,null,null,null,null,null,null,null,null,null,null,null,0]
[9,null,null,null,null,null,null,null,null,null,null,null,null,null,null,null,null,null,null,null,null,null,null,null,0]
[10,null,null,null,null,null,null,null,null,null,null,null,null,null,null,null,null,null,null,null,null,null,null,null,0]
[11,null,null,null,null,null,null,null,null,null,null,null,null,null,null,null,null,null,null,null,null,null,null,null,0]
[12,null,null,null,null,null,null,null,null,null,null,null,null,null,null,null,null,null,null,null,null,null,null,null,0]
[13,null,null,null,null,null,null,null,null,null,null,null,null,null,null,null,null,null,null,null,null,null,null,null,0]
[14,null,null,null,null,null,null,null,null,null,null,null,null,null,null,null,null,null,null,null,null,null,null,null,0]
[15,null,null,null,null,null,null,null,null,null,null,null,null,null,null,null,null,null,null,null,null,null,null,null,0]
[16,null,null,null,null,null,null,null,null,null,null,null,null,null,null,null,null,null,null,null,null,null,null,null,0]
["средний результат/оценка по группе",null,null,{"$f":"(D6+D7+D8+D9+D10+D11+D12+D13+D14+D15+D16+D17+D18+D19+D20+D21)/16","v":0},{"$f":"(E6+E7+E8+E9+E10+E11+E12+E13+E14+E15+E16+E17+E18+E19+E20+E21)/16","v":0},0,0,0,0,0,0,0,0,0,0,0,0,0,0,0,0,0,0,{"$f":"(X6+X7+X8+X9+X10+X11+X12+X13+X14+X15+X16+X17+X18+X19+X20+X21)/16","v":0},{"$f":"(Y6+Y7+Y8+Y9+Y10+Y11+Y12+Y13+Y14+Y15+Y16+Y17+Y18+Y19+Y20+Y21)/16","v":0}]
["средний балл по",null,null,"ОФП",null,null,null,null,null,null,null,{"$f":"(E22+G22+I22+K22+M22)/5","v":0},null,"СФП",null,null,null,null,null,null,null,{"$f":"(O22+Q22+S22+U22+W22)/5","v":0}]
["Дата приема КПН",null,null,"Гл.судья ",null,null,null,null,null,null,null,null,null,"Гл.секретарь"]
[]
["№","НАИМЕНОВАНИЕ КПН: № 1-5 - ОФП; 6-10 СФП"]
[1,"Бег на время (30, 60, 100  м), дистанция в зависимости от возраста, с низкого или высокого старта"]
[2,"Бег на время (500, 1000,2000, 3000 м), в зависимости от возраста и пола"]
[3,"Прыжок в длину с места (см), на дальность"]
[4,"Подтягивание на прекладине низкой или высокой, в завистимости от возраста и пола, количество раз "]
[5,"Сгибание и разгибание рук в упоре лежа на полу, количество раз"]
[6]
[7]
[8]
[9]
[10]

{"sheet":"черлидинг","index":12,"n_rows":36,"n_cols":25,"rows_kept":36,"cut":false,"hidden":false,"merged":[[3,7,3,8],[0,0,0,24],[1,0,1,24],[2,0,2,1],[2,2,2,7],[2,8,2,10],[2,11,2,14],[2,15,2,18],[2,19,2,24],[3,0,4,0],[3,1,4,1],[3,2,4,2],[3,3,3,4],[3,5,3,6],[25,1,25,24],[3,21,3,22],[3,23,4,23],[3,24,4,24],[21,0,21,2],[22,0,22,2],[22,3,22,10],[22,11,22,12],[22,13,22,20],[22,21,22,22],[3,9,3,10],[3,11,3,12],[3,13,3,14],[3,15,3,16],[3,17,3,18],[3,19,3,20],[23,0,23,1],[23,3,23,5],[23,6,23,12],[23,13,23,16],[23,17,23,22],[32,1,32,24],[33,1,33,24],[34,1,34,24],[35,1,35,24],[26,1,26,24],[27,1,27,24],[28,1,28,24],[29,1,29,24],[30,1,30,24],[31,1,31,24]]}
[" П Р О Т О К О Л"]
["приема контрольно переводных нормативов (КПН)"]
["вид спорта-",null,"черлидинг",null,null,null,null,null,"группа-",null,null,"СОГ",null,null,null,"тренер-"]
["№","Ф.И.","возраст",1,null,2,null,3,null,4,null,5,null,6,null,7,null,8,null,9,null,10,null,"Теория","средняя оценка"]
[null,null,null,"р","о","р","о","р","о","р","о","р","о","р","о","р","о","р","о","р","о","р","о"]
[1,null,null,null,null,null,null,null,null,null,null,null,null,null,null,null,null,null,null,null,null,null,null,null,{"$f":"(E6+G6+I6+K6+M6+O6+Q6+S6+U6+W6)/10","v":0}]
[2,null,null,null,null,null,null,null,null,null,null,null,null,null,null,null,null,null,null,null,null,null,null,null,{"$f":"(E7+G7+I7+K7+M7+O7+Q7+S7+U7+W7)/10","v":0}]
[3,null,null,null,null,null,null,null,null,null,null,null,null,null,null,null,null,null,null,null,null,null,null,null,0]
[4,null,null,null,null,null,null,null,null,null,null,null,null,null,null,null,null,null,null,null,null,null,null,null,0]
[5,null,null,null,null,null,null,null,null,null,null,null,null,null,null,null,null,null,null,null,null,null,null,null,0]
[6,null,null,null,null,null,null,null,null,null,null,null,null,null,null,null,null,null,null,null,null,null,null,null,0]
[7,null,null,null,null,null,null,null,null,null,null,null,null,null,null,null,null,null,null,null,null,null,null,null,0]
[8,null,null,null,null,null,null,null,null,null,null,null,null,null,null,null,null,null,null,null,null,null,null,null,0]
[9,null,null,null,null,null,null,null,null,null,null,null,null,null,null,null,null,null,null,null,null,null,null,null,0]
[10,null,null,null,null,null,null,null,null,null,null,null,null,null,null,null,null,null,null,null,null,null,null,null,0]
[11,null,null,null,null,null,null,null,null,null,null,null,null,null,null,null,null,null,null,null,null,null,null,null,0]
[12,null,null,null,null,null,null,null,null,null,null,null,null,null,null,null,null,null,null,null,null,null,null,null,0]
[13,null,null,null,null,null,null,null,null,null,null,null,null,null,null,null,null,null,null,null,null,null,null,null,0]
[14,null,null,null,null,null,null,null,null,null,null,null,null,null,null,null,null,null,null,null,null,null,null,null,0]
[15,null,null,null,null,null,null,null,null,null,null,null,null,null,null,null,null,null,null,null,null,null,null,null,0]
[16,null,null,null,null,null,null,null,null,null,null,null,null,null,null,null,null,null,null,null,null,null,null,null,0]
["средний результат/оценка по группе",null,null,{"$f":"(D6+D7+D8+D9+D10+D11+D12+D13+D14+D15+D16+D17+D18+D19+D20+D21)/16","v":0},{"$f":"(E6+E7+E8+E9+E10+E11+E12+E13+E14+E15+E16+E17+E18+E19+E20+E21)/16","v":0},0,0,0,0,0,0,0,0,0,0,0,0,0,0,0,0,0,0,{"$f":"(X6+X7+X8+X9+X10+X11+X12+X13+X14+X15+X16+X17+X18+X19+X20+X21)/16","v":0},{"$f":"(Y6+Y7+Y8+Y9+Y10+Y11+Y12+Y13+Y14+Y15+Y16+Y17+Y18+Y19+Y20+Y21)/16","v":0}]
["средний балл по",null,null,"ОФП",null,null,null,null,null,null,null,{"$f":"(E22+G22+I22+K22+M22)/5","v":0},null,"СФП",null,null,null,null,null,null,null,{"$f":"(O22+Q22+S22+U22+W22)/5","v":0}]
["Дата приема КПН",null,null,"Гл.судья ",null,null,null,null,null,null,null,null,null,"Гл.секретарь"]
[]
["№","НАИМЕНОВАНИЕ КПН: № 1-5 - ОФП; 6-10 СФП"]
[1,"Бег на время (30, 60, 100  м), дистанция в зависимости от возраста, с низкого или высокого старта"]
[2,"Бег на время (500, 1000,2000, 3000 м), в зависимости от возраста и пола"]
[3,"Прыжок в длину с места (см), на дальность"]
[4,"Подтягивание на прекладине низкой или высокой, в завистимости от возраста и пола, количество раз "]
[5,"Сгибание и разгибание рук в упоре лежа на полу, количество раз"]
[6]
[7]
[8]
[9]
[10]